{"text_format":"1","workbook":"xlsx","n_sheets":3,"sheets":["Regnskab","Årsregnskab","Budget (næste år)"],"not_rendered":{"charts":0,"images":2,"macros":0,"external_links":0,"defined_names":2,"comments":3,"pivot_tables":0},"unopened":[],"bounds":{"document_bytes":16777216,"sheet_cells":100000,"rows_first":2000,"rows_last":500,"rows_between":2000,"halvings":0,"cell_chars":16384,"cell_head_chars":4096},"cells_cut":0,"cells_raw":0,"read":"whole","date_system":"1900"}

{"sheet":"Regnskab","index":0,"n_rows":22,"n_cols":18,"rows_kept":22,"cut":false,"hidden":false,"merged":[[25,10,37,12],[8,10,16,12],[18,10,22,12],[1,5,1,6],[1,7,1,8],[3,5,3,6],[3,7,3,8],[2,10,3,12],[1,1,1,2],[5,5,5,6],[5,7,5,8],[5,1,5,4],[2,1,3,3]]}
[]
[null,"Regnskab",null,2014,null,"Pengekase",null,"Bankkonto"]
[null,"Bydelsmødrene - Blomsterlund",null,null,"Indtægter og udgifter",{"$f":"SUM(F8:F197)","v":0},{"$f":"SUM(G8:G197)","v":0},{"$f":"SUM(H8:H197)","v":0},{"$f":"SUM(I8:I197)","v":0},null,"Pink felt - her til venstre - viser hele tiden årets resultat."]
[null,null,null,null,"Resultat",{"$f":"F3-G3","v":0},null,{"$f":"H3-I3","v":0}]
[]
[null,"Opgørelse",null,null,null,"Pengekasse",null,"Bankkonto"]
[null,"Dato","Beskrivelse","Bilag","Kategori","Indtægt","Udgift","Indtægt","Udgift",null,null,null,null,null,null,"Kategorier"]
[null,"01.01","EKSEMPEL Overført fra sidste år",null,"Overførsel",null,null,null,null,null,null,null,null,null,null,"I-Fonde og puljer"]
[null,"03.01","EKSEMPEL Støtte fra Helhedsplanen",1,"I-Anden støtte",null,null,null,null,null,"Dette ark klarer det hele for dig - næsten. Tast dine løbende indtægter (I) og udgifter (U) ind i forhold til, om det er et beløb, der kommer ind eller ud af penge-kassen eller på bankkontoen.\nVupti! Årsregnskabet laves automatisk i arket Årsregn-skab.\n\n",null,null,null,null,"I-Anden støtte",null,"I = Indtægter"]
[null,"05.01","EKSEMPEL Print af foldere",2,"U-Materialer",null,null,null,null,null,null,null,null,null,null,"I-Diverse"]
[null,"15.01","EKSEMPEL Gave til tema-aften",3,"Overførsel",null,null,null,null,null,null,null,null,null,null,"U-Aktiviteter"]
[null,null,null,null,null,null,null,null,null,null,null,null,null,null,null,"U-Uddannelse"]
[null,null,null,null,null,null,null,null,null,null,null,null,null,null,null,"U-Kontorartikler"]
[null,null,null,null,null,null,null,null,null,null,null,null,null,null,null,"U-Telefon og Internet"]
[null,null,null,null,null,null,null,null,null,null,null,null,null,null,null,"U-Transport"]
[null,null,null,null,null,null,null,null,null,null,null,null,null,null,null,"U-Deltagergebyrer",null,"U= Udgifter"]
[null,null,null,null,null,null,null,null,null,null,null,null,null,null,null,"U-Materialer"]
[null,null,null,null,null,null,null,null,null,null,null,null,null,null,null,"U-Møder"]
[null,null,null,null,null,null,null,null,null,null,"Rød trekant i hjørnet på et felt betyder, at der er en kommen-tar.\nSæt musen henover for at læse den.",null,null,null,null,"U-Honorar"]
[null,null,null,null,null,null,null,null,null,null,null,null,null,null,null,"U-Revision"]
[null,null,null,null,null,null,null,null,null,null,null,null,null,null,null,"U-Diverse"]
[null,null,null,null,null,null,null,null,null,null,null,null,null,null,null,"Overførsel"]

{"sheet":"Årsregnskab","index":1,"n_rows":56,"n_cols":4,"rows_kept":56,"cut":false,"hidden":false,"merged":[[4,0,4,1],[7,2,7,3],[7,1,8,1],[27,2,27,3]]}
[]
[null,"Årsregnskab",{"$f":"Regnskab!$D$2","v":2014}]
[]
[null,{"$f":"Regnskab!$B$3","v":"Bydelsmødrene - Blomsterlund"}]
[]
[]
[]
[null,"Kategorier","Årsregnskab"]
[null,null,"Indtægt i alt","Udgift i alt"]
[null,"I-Fonde og puljer",{"$f":"SUMIF(Regnskab!$E$9:$E$994,Årsregnskab!$B10,Regnskab!F$9:F$994)+SUMIF(Regnskab!$E$9:$E$994,Årsregnskab!$B10,Regnskab!H$9:H$994)","v":0}]
[null,"I-Anden støtte",{"$f":"SUMIF(Regnskab!$E$9:$E$994,Årsregnskab!$B11,Regnskab!F$9:F$994)+SUMIF(Regnskab!$E$9:$E$994,Årsregnskab!$B11,Regnskab!H$9:H$994)","v":0}]
[null,"I-Diverse",{"$f":"SUMIF(Regnskab!$E$9:$E$994,Årsregnskab!$B12,Regnskab!F$9:F$994)+SUMIF(Regnskab!$E$9:$E$994,Årsregnskab!$B12,Regnskab!H$9:H$994)","v":0}]
[]
[null,"U-Aktiviteter",null,{"$f":"SUMIF(Regnskab!$E$9:$E$994,Årsregnskab!$B14,Regnskab!G$9:G$994)+SUMIF(Regnskab!$E$9:$E$994,Årsregnskab!$B14,Regnskab!I$9:I$994)","v":0}]
[null,"U-Uddannelse",null,{"$f":"SUMIF(Regnskab!$E$9:$E$994,Årsregnskab!$B15,Regnskab!G$9:G$994)+SUMIF(Regnskab!$E$9:$E$994,Årsregnskab!$B15,Regnskab!I$9:I$994)","v":0}]
[null,"U-Kontorartikler",null,{"$f":"SUMIF(Regnskab!$E$9:$E$994,Årsregnskab!$B16,Regnskab!G$9:G$994)+SUMIF(Regnskab!$E$9:$E$994,Årsregnskab!$B16,Regnskab!I$9:I$994)","v":0}]
[null,"U-Telefon og Internet",null,{"$f":"SUMIF(Regnskab!$E$9:$E$994,Årsregnskab!$B17,Regnskab!G$9:G$994)+SUMIF(Regnskab!$E$9:$E$994,Årsregnskab!$B17,Regnskab!I$9:I$994)","v":0}]
[null,"U-Transport",null,{"$f":"SUMIF(Regnskab!$E$9:$E$994,Årsregnskab!$B18,Regnskab!G$9:G$994)+SUMIF(Regnskab!$E$9:$E$994,Årsregnskab!$B18,Regnskab!I$9:I$994)","v":0}]
[null,"U-Deltagergebyrer",null,{"$f":"SUMIF(Regnskab!$E$9:$E$994,Årsregnskab!$B19,Regnskab!G$9:G$994)+SUMIF(Regnskab!$E$9:$E$994,Årsregnskab!$B19,Regnskab!I$9:I$994)","v":0}]
[null,"U-Kurser",null,{"$f":"SUMIF(Regnskab!$E$9:$E$994,Årsregnskab!$B20,Regnskab!G$9:G$994)+SUMIF(Regnskab!$E$9:$E$994,Årsregnskab!$B20,Regnskab!I$9:I$994)","v":0}]
[null,"U-Materialer",null,{"$f":"SUMIF(Regnskab!$E$9:$E$994,Årsregnskab!$B21,Regnskab!G$9:G$994)+SUMIF(Regnskab!$E$9:$E$994,Årsregnskab!$B21,Regnskab!I$9:I$994)","v":0}]
[null,"U-Møder",null,{"$f":"SUMIF(Regnskab!$E$9:$E$994,Årsregnskab!$B22,Regnskab!G$9:G$994)+SUMIF(Regnskab!$E$9:$E$994,Årsregnskab!$B22,Regnskab!I$9:I$994)","v":0}]
[null,"U-Honorar",null,{"$f":"SUMIF(Regnskab!$E$9:$E$994,Årsregnskab!$B23,Regnskab!G$9:G$994)+SUMIF(Regnskab!$E$9:$E$994,Årsregnskab!$B23,Regnskab!I$9:I$994)","v":0}]
[null,"U-Revision",null,{"$f":"SUMIF(Regnskab!$E$9:$E$994,Årsregnskab!$B24,Regnskab!G$9:G$994)+SUMIF(Regnskab!$E$9:$E$994,Årsregnskab!$B24,Regnskab!I$9:I$994)","v":0}]
[null,"U-Diverse",null,{"$f":"SUMIF(Regnskab!$E$9:$E$994,Årsregnskab!$B25,Regnskab!G$9:G$994)+SUMIF(Regnskab!$E$9:$E$994,Årsregnskab!$B25,Regnskab!I$9:I$994)","v":0}]
[null,"Indtægter og udgifter i alt   ",{"$f":"SUM(C10:C12)","v":0},{"$f":"SUM(D14:D25)","v":0}]
[]
[null,"Resultat d. 31.12.  ",{"$f":"C26-D26","v":0}]
[]
[]
[]
[null,"Kommentarer til regnskabet"]
[]
[]
[]
[]
[]
[]
[]
[]
[]
[]
[]
[]
[]
[]
[]
[]
[]
[]
[]
[]
[]
[null,"Regnskab revideret og godkendt den: "]
[]
[null,"Revisor underskrift"]

{"sheet":"Budget (næste år)","index":2,"n_rows":29,"n_cols":9,"rows_kept":29,"cut":false,"hidden":false,"merged":[[28,1,32,1],[5,4,5,5],[25,4,25,5],[25,2,25,3],[5,1,6,1],[5,2,5,3]]}
[]
[null,"Budget 2014"]
[]
[null,"Bydelsmødrene Blomsterlund"]
[]
[null,"Kategorier","Årsopgørelse 2014",null,"Budget \n2013"]
[null,null,"Indtægt","Udgift","Indtægt","Udgift"]
[null,"I-Fonde og puljer",{"$f":"Årsregnskab!$C$10","v":0}]
[null,"I-Anden støtte",{"$f":"Årsregnskab!$C$11","v":0}]
[null,"I-Diverse",{"$f":"Årsregnskab!$C$12","v":0}]
[]
[null,"U-Aktiviteter",null,{"$f":"Årsregnskab!$D$14","v":0}]
[null,"U-Uddannelse",null,{"$f":"Årsregnskab!$D$15","v":0}]
[null,"U-Kontorartikler",null,{"$f":"Årsregnskab!$D$16","v":0}]
[null,"U-Telefon og Internet",null,{"$f":"Årsregnskab!$D$17","v":0}]
[null,"U-Transport",null,{"$f":"Årsregnskab!$D$18","v":0}]
[null,"U-Deltagergebyrer",null,{"$f":"Årsregnskab!$D$19","v":0}]
[null,"U-Kurser",null,{"$f":"Årsregnskab!$D$20","v":0}]
[null,"U-Materialer",null,{"$f":"Årsregnskab!$D$21","v":0}]
[null,"U-Møder",null,{"$f":"Årsregnskab!$D$22","v":0}]
[null,"U-Honorar",null,{"$f":"Årsregnskab!$D$23","v":0}]
[null,"U-Revision",null,{"$f":"Årsregnskab!$D$24","v":0},null,null,null,null,"d"]
[null,"U-Diverse",null,{"$f":"Årsregnskab!$D$25","v":0}]
[null,"Resultat",{"$f":"SUM(C8:C10)","v":0},{"$f":"SUM(D12:D23)","v":0},{"$f":"SUM(E8:E10)","v":0}]
[]
[null,"Saldo",{"$f":"C24-D24","v":0},null,{"$f":"E24-F24","v":0}]
[]
[]
[null,"Rød trekant i hjørnet på en celle viser, at der er en kommentar."]